Cogmind - Beta 11 X9 @@@ ROGUE MODE // 2022.01.21 @ 08:22:02 Player: LU-1G1 Result: Self-destructed Performance ------------- Evolutions (4) 2000 Regions Visited (11) 2200 Robots Destroyed (118) 590 Value Destroyed (2309) 2309 Prototype IDs (32) 640 Alien Tech Used (0) 0 Bonus (872) 872 TOTAL SCORE: 8611 Bonus ------- High Alert Combat Kills 8 Follower Combat Kills 64 Entered DSFs 500 Aligned with FarCom 300 Cogmind --------- Core Integrity 850/850 Matter 229/300 Energy 240/240 System Corruption 0% Temperature Cool (0) Movement Flying (34) Location -6/DSF Parts ------- > --- POWER (1) -------- Nuclear Core > --- PROPULSION (6) --- VTOL Module Cesium-ion Thruster Flying Fortress v7 > --- UTILITY (6) ------ Large Storage Unit Structural Scanner Visual Processing Unit Improved Propulsion Shielding Medium Reflective Plating Medium Reflective Plating > --- WEAPON (2) ------- Minigun Rocket Launcher > --- INVENTORY (15) --- Light Nuclear Core Light Nuclear Core High-capacity Matter Pod (200) Improved Signal Interpreter Medium Reflective Plating Focal Shield Hacking Suite Hacking Suite Hacking Suite System Shield Long-range Tractor Beam Improved Assault Rifle Improved Assault Rifle Gauss Rifle Mini Grenade Launcher Peak State ------------ > --- POWER ------------ Light Nuclear Core > --- PROPULSION ------- VTOL Module Cesium-ion Thruster Flying Fortress v7 > --- UTILITY ---------- Large Storage Unit Structural Scanner Visual Processing Unit Improved Propulsion Shielding Medium Reflective Plating Medium Reflective Plating > --- WEAPON ----------- Minigun Gauss Rifle > --- INVENTORY -------- Light Nuclear Core High-capacity Matter Pod Improved Signal Interpreter Medium Reflective Plating Hacking Suite Hacking Suite Hacking Suite Improved Assault Rifle Improved Assault Rifle Rocket Launcher Mini Grenade Launcher [Rating: 65] Favorites ----------- Power Heavy Ion Engine Engine Heavy Ion Engine Power Core Light Nuclear Core Propulsion Light Treads Treads Light Treads Leg Aluminum Leg Wheel Compact Wheel Flight Unit Flying Fortress v7 Utility Visual Processing Unit Device Tractor Beam Storage Large Storage Unit Processor Visual Processing Unit Protection Medium Reflective Plating Weapon Improved Assault Rifle Energy Gun Improved Medium Laser Energy Cannon Advanced Beam Cannon Ballistic Gun Improved Assault Rifle Launcher Rocket Launcher Build | -11 -10 -10 -9 -9 -9 -8 -8 -8 -8 -6 -6 ------- Run | Scr Mat Min Mat Min Exi Min Mat Sto Rec Fac DSF Slots Evolved 8 | . . . 2 . . . 2 . . 4 . Power . | . . . . . . . . . . . . Propulsion 4 | . . . 1 . . . 1 . . 2 . Utility 4 | . . . 1 . . . 1 . . 2 . Weapon . | . . . . . . . . . . . . Parts Attached 83 | 7 6 4 32 . 1 2 24 1 . 6 . Power 11 | 1 . 2 4 . . 1 2 . . 1 . Engine 7 | 1 . 2 4 . . . . . . . . Core 4 | . . . . . . 1 2 . . 1 . Reactor . | . . . . . . . . . . . . Propulsion 29 | 2 1 1 12 . . 1 10 . . 2 . Treads 17 | 2 1 1 9 . . . 4 . . . . Leg 4 | . . . 3 . . . 1 . . . . Wheel 5 | . . . . . . 1 4 . . . . Hover . | . . . . . . . . . . . . Flight 3 | . . . . . . . 1 . . 2 . Utility 18 | 2 2 . 4 . 1 . 7 . . 2 . Device 4 | 1 . . 1 . . . 1 . . 1 . Storage 5 | 1 1 . 1 . 1 . 1 . . . . Processor 2 | . 1 . . . . . 1 . . . . Hackware . | . . . . . . . . . . . . Protection 7 | . . . 2 . . . 4 . . 1 . Artifact . | . . . . . . . . . . . . Weapon 25 | 2 3 1 12 . . . 5 1 . 1 . Energy Gun 4 | . . . 3 . . . 1 . . . . Energy Cannon 3 | . 1 1 1 . . . . . . . . Ballistic Gun 16 | 2 2 . 7 . . . 4 1 . . . Ballistic Cannon . | . . . . . . . . . . . . Launcher 2 | . . . 1 . . . . . . 1 . Special Weapon . | . . . . . . . . . . . . Impact Weapon . | . . . . . . . . . . . . Slashing Weapon . | . . . . . . . . . . . . Piercing Weapon . | . . . . . . . . . . . . Special Melee Weapon . | . . . . . . . . . . . . Unidentified Prototypes 6 | . 1 . 4 . . . 1 . . . . Parts Lost 24 | . . 1 7 . . 1 15 . . . . Power 5 | . . 1 1 . . 1 2 . . . . Propulsion 10 | . . . 5 . . . 5 . . . . Utility 6 | . . . 1 . . . 5 . . . . Weapon 3 | . . . . . . . 3 . . . . Highest Loss Streak 9 | . . 1 2 . . 1 9 . . . . Average Slot Usage (%) 90 | . 99 100 93 100 90 87 79 67 72 80 . Engine 9 | . 14 14 10 11 11 9 . . . . . Core 1 | . . . . . . . 7 9 9 6 . Treads 26 | . 28 28 26 33 33 32 22 . . . . Wheel 1 | . . . . . . . 10 . . . . Device 1 | . 9 . 1 . . . . . . 6 . Storage 13 | . 14 14 15 22 13 11 8 9 9 6 . Processor 10 | . 4 14 11 11 11 11 9 9 9 6 . Protection 2 | . . . 4 . . . 4 18 18 20 . Energy Cannon 1 | . . 9 2 . . . . . . . . Ballistic Gun 19 | . 27 18 15 22 22 22 15 13 18 7 . Naked Turns . | . . . . . . . . . . . . Heaviest Build 216 | 11 25 32 41 35 214 214 216 41 41 51 51 Greatest Support 60 | 40 40 40 60 60 60 60 50 50 50 59 59 Greatest Overweight (x) 21 | . . . 11 . 3 13 21 . . . . Average Overweight (x) 1 | . . . . . 1 3 8 . . . . Largest Inventory Capacity 35 | 8 15 15 15 15 35 35 35 15 15 15 15 Average Capacity 22 | 7 9 15 15 15 30 35 32 15 15 15 15 Most Carried 35 | 7 14 15 15 15 26 29 35 15 15 15 15 Average Carried 18 | 4 8 14 14 14 21 26 29 14 14 12 15 Final Capacity 35 | 8 15 15 15 15 35 35 15 15 15 15 15 Final Carried 29 | 7 14 15 15 15 26 29 15 15 15 15 15 Class Distribution -------------------- 40% | Hauler-Mutant 31% | Scavenger-Mutant 27% | Mutant Dominant Class ---------------- Mutant | -10/Materials Scavenger-Mutant | -10/Mines Scavenger-Mutant | -9/Materials Scavenger-Mutant | -9/Mines Hauler-Mutant | -9/Exiles Hauler-Mutant | -8/Mines Hauler-Mutant | -8/Materials Mutant | -8/Storage Mutant | -8/Recycling Scout | -6/Factory Scout | -6/DSF Resources | -11 -10 -10 -9 -9 -9 -8 -8 -8 -8 -6 -6 ----------- Run | Scr Mat Min Mat Min Exi Min Mat Sto Rec Fac DSF Matter Collected 2895 | 296 263 61 907 90 350 121 793 . 14 . . Remotely 456 | 238 218 . . . . . . . . . . Salvage Created 4099 | 101 234 159 1939 167 . 240 1259 . . . . Parts 267 | 6 24 4 139 6 . 9 79 . . . . Haulers Intercepted 7 | . 1 . 5 . . . 1 . . . . Recyclers Shooed 10 | . 4 1 2 1 . 1 1 . . . . Parts Field Recycled . | . . . . . . . . . . . . Retrieved Matter . | . . . . . . . . . . . . Parts Self-Destructed . | . . . . . . . . . . . . Prevented . | . . . . . . . . . . . . Kills | -11 -10 -10 -9 -9 -9 -8 -8 -8 -8 -6 -6 ------- Run | Scr Mat Min Mat Min Exi Min Mat Sto Rec Fac DSF Combat Hostiles Destroyed 72 | . 8 5 33 3 . 4 19 . . . . Guns 62 | . 8 2 26 3 . 4 19 . . . . Cannons 7 | . . 3 4 . . . . . . . . AOE 3 | . . . 3 . . . . . . . . Classes Destroyed 14 | 2 4 2 3 . . 1 2 . . . . Worker 9 | . . . 6 2 . . 1 . . . . Builder 8 | . . 1 3 1 . . 3 . . . . Tunneler 2 | 1 . . 1 . . . . . . . . Hauler 7 | . 1 . 5 . . . 1 . . . . Recycler 11 | 1 . . 4 1 . 1 4 . . . . Mechanic 1 | . . . . . . . 1 . . . . Operator 4 | . . . 4 . . . . . . . . Watcher 5 | . 1 . 2 . . . 2 . . . . Swarmer 29 | . 7 2 9 3 . 1 7 . . . . Grunt 31 | . 1 2 20 . . 2 6 . . . . Duelist 1 | . . . . . . 1 . . . . . Sentry 9 | . . . 4 . . . 5 . . . . Hunter 1 | . . . . . . . 1 . . . . Assembled 1 | . . 1 . . . . . . . . . Best Kill Streak 8 | 1 3 2 6 6 . 3 8 . . . . Combat Bots Only 6 | . 3 2 5 2 . 2 6 . . . . Max Kills in Single Turn 4 | 1 1 1 4 1 . 1 2 . . . . Gunslinging 1 | . . . . . . . 1 . . . . Exploded 3 | . . . 3 . . . . . . . . Melee . | . . . . . . . . . . . . Uniques/NPCs Destroyed . | . . . . . . . . . . . . Combat | -11 -10 -10 -9 -9 -9 -8 -8 -8 -8 -6 -6 -------- Run | Scr Mat Min Mat Min Exi Min Mat Sto Rec Fac DSF Damage Taken 4133 | . 353 132 1175 139 . 222 1906 206 . . . Core 386 | . 44 8 77 19 . 34 163 41 . . . Absorbed by Shields 34 | . . . 34 . . . . . . . . Core Remaining (%) 77 | 100 . 79 . . . 67 . . 62 . . Volleys Fired 343 | 13 42 25 138 17 . 11 95 1 . 1 . Largest 2 | 2 2 2 2 2 . 2 2 1 . 1 . Hottest 136 | 40 40 68 136 46 . 46 51 28 . 33 . Shots Fired 620 | 26 84 29 275 34 . 22 148 1 . 1 . Gun 575 | 26 84 8 252 34 . 22 148 1 . . . Cannon 43 | . . 21 22 . . . . . . . . Launcher 2 | . . . 1 . . . . . . 1 . Special . | . . . . . . . . . . . . Kinetic 535 | 26 84 8 212 34 . 22 148 1 . . . Thermal 83 | . . 21 62 . . . . . . . . Explosive 2 | . . . 1 . . . . . . 1 . Electromagnetic . | . . . . . . . . . . . . Robot Hit Streak 15 | 2 6 7 15 4 . 5 10 . . . . Robot Miss Streak 4 | 3 3 1 4 3 . 2 3 . . . . Penetration Max 1 | . . . . . . . 1 . . . . Secondary Targets 7 | . 1 1 2 1 . . 2 . . . . Max Gunslinging Chain 1 | . 1 1 1 1 . . 1 . . . . Shots Hit Robots 387 | 14 43 10 185 21 . 14 100 . . . . Core Hits 171 | 4 20 7 78 8 . 8 46 . . . . Critical Kills . | . . . . . . . . . . . . Critical Parts Destroyed 1 | . . . . . . . 1 . . . . Critical Strikes 1 | . . . . . . . 1 . . . . Destroy 1 | . . . . . . . 1 . . . . Melee Attacks . | . . . . . . . . . . . . Impact . | . . . . . . . . . . . . Slashing . | . . . . . . . . . . . . Piercing . | . . . . . . . . . . . . Sneak Attacks . | . . . . . . . . . . . . Combat Hostiles . | . . . . . . . . . . . . Follow-up Attacks . | . . . . . . . . . . . . Damage Inflicted 6178 | 104 380 163 3131 352 . 226 1822 . . . . Guns 5559 | 104 366 47 2683 313 . 226 1820 . . . . Cannons 329 | . . 83 246 . . . . . . . . Explosions 211 | . . . 174 37 . . . . . . . Melee . | . . . . . . . . . . . . Ramming 79 | . 14 33 28 2 . . 2 . . . . Kinetic 5164 | 104 366 47 2288 313 . 226 1820 . . . . Thermal 761 | . . 83 641 37 . . . . . . . Explosive 174 | . . . 174 . . . . . . . . Electromagnetic . | . . . . . . . . . . . . Impact . | . . . . . . . . . . . . Slashing . | . . . . . . . . . . . . Piercing . | . . . . . . . . . . . . Highest Corruption 2 | . . . . . . . 2 2 2 . . Average Corruption 2 | . . . . . . . 2 2 2 . . Corruption Purged . | . . . . . . . . . . . . Effects 1 | . . . . . . . . 1 . . . Energy Discharges 1 | . . . . . . . . 1 . . . Overload Shots . | . . . . . . . . . . . . Overflow Damage . | . . . . . . . . . . . . Projectiles . | . . . . . . . . . . . . Explosions . | . . . . . . . . . . . . Melee . | . . . . . . . . . . . . Knockbacks 1 | . . . 1 . . . . . . . . Impact 1 | . . . 1 . . . . . . . . Kinetic . | . . . . . . . . . . . . Secondary . | . . . . . . . . . . . . Self-Inflicted Damage 50 | . . . . 49 . . 1 . . . . Shots 1 | . . . . 1 . . . . . . . Rammed 12 | . 4 3 3 1 . . 1 . . . . Targets Rammed 13 | . 4 4 3 1 . . 1 . . . . Kicked . | . . . . . . . . . . . . Crushed 1 | . . 1 . . . . . . . . . Highest Temperature 372 | . 12 124 372 5 . 3 136 24 . 2 . Average Temperature 60 | . 8 36 69 5 . 2 53 13 . 1 . Received Heat Transfer 1644 | . 54 48 534 . . 63 810 135 . . . Effects 1 | . . . 1 . . . . . . . . Damage (minor) 1 | . . . 1 . . . . . . . . Siege Activations . | . . . . . . . . . . . . Robots Corrupted . | . . . . . . . . . . . . Combat Hostiles . | . . . . . . . . . . . . Parts Fried . | . . . . . . . . . . . . Impact Corruptions . | . . . . . . . . . . . . Robots Melted . | . . . . . . . . . . . . Combat Hostiles . | . . . . . . . . . . . . Parts Melted 1 | . . . 1 . . . . . . . . Heat Transferred 1493 | . . 148 1295 50 . . . . . . . Parts Sabotaged . | . . . . . . . . . . . . Parts Stolen . | . . . . . . . . . . . . Parts Stripped . | . . . . . . . . . . . . Power Chain Reactions . | . . . . . . . . . . . . Missiles Intercepted . | . . . . . . . . . . . . Alert | -11 -10 -10 -9 -9 -9 -8 -8 -8 -8 -6 -6 ------- Run | Scr Mat Min Mat Min Exi Min Mat Sto Rec Fac DSF Peak Influence 935 | 10 292 122 508 303 . 65 255 119 286 935 654 Initial 928 | . 6 43 . 198 . . 25 74 46 928 654 Average 145 | 5 184 36 275 292 . 34 87 94 111 932 654 Maximum Alert Level 3 | . 1 . 2 1 . . 1 . 1 3 2 Low Security (%) 67 | 100 59 100 20 1 . 100 87 100 81 . . Level 1 30 | . 40 . 74 98 . . 12 . 18 . . Level 2 1 | . . . 5 . . . . . . . 100 Level 3 1 | . . . . . . . . . . 100 . Level 4 . | . . . . . . . . . . . . Level 5 . | . . . . . . . . . . . . High Security . | . . . . . . . . . . . . Max Security . | . . . . . . . . . . . . Squads Dispatched 16 | . 2 1 8 . . . 3 2 . . . Investigation 5 | . . 1 3 . . . 1 . . . . Extermination . | . . . . . . . . . . . . Reinforcement 11 | . 2 . 5 . . . 2 2 . . . Assault . | . . . . . . . . . . . . Garrison . | . . . . . . . . . . . . Intercept . | . . . . . . . . . . . . Construction Impeded 1 | . . . 1 . . . . . . . . Haulers Reinforced . | . . . . . . . . . . . . Active Scanning Responses . | . . . . . . . . . . . . Cargo Convoy Interrupts . | . . . . . . . . . . . . Stealth | -11 -10 -10 -9 -9 -9 -8 -8 -8 -8 -6 -6 --------- Run | Scr Mat Min Mat Min Exi Min Mat Sto Rec Fac DSF Distress Signals 10 | . 1 . 5 1 . . 3 . . . . Communications Jammed . | . . . . . . . . . . . . Distress Signals . | . . . . . . . . . . . . Times Spotted 153 | . 19 11 66 3 . 5 29 7 13 . . Peak Tracking Total 6 | . 4 3 6 3 . 3 6 5 5 . . Tactical Retreats 6 | . 1 1 2 . . 1 1 . . . . Traps | -11 -10 -10 -9 -9 -9 -8 -8 -8 -8 -6 -6 ------- Run | Scr Mat Min Mat Min Exi Min Mat Sto Rec Fac DSF Traps Triggered 1 | . . . . . . . 1 . . . . Indirectly . | . . . . . . . . . . . . Trap Hack Attempts . | . . . . . . . . . . . . Triggered . | . . . . . . . . . . . . Disarmed . | . . . . . . . . . . . . Reprogrammed . | . . . . . . . . . . . . Reused . | . . . . . . . . . . . . Traps Extracted . | . . . . . . . . . . . . Installed . | . . . . . . . . . . . . Triggered . | . . . . . . . . . . . . Machines | -11 -10 -10 -9 -9 -9 -8 -8 -8 -8 -6 -6 ---------- Run | Scr Mat Min Mat Min Exi Min Mat Sto Rec Fac DSF Machines Disabled 2 | . . . . 1 . . . 1 . . . Max in Single Turn 1 | . . . . 1 . . . 1 . . . Garrison Access 1 | . . . . . . . 1 . . . . Machines Sabotaged . | . . . . . . . . . . . . Garrisons Compromised . | . . . . . . . . . . . . Overloaded Fab Kills . | . . . . . . . . . . . . Hacking | -11 -10 -10 -9 -9 -9 -8 -8 -8 -8 -6 -6 --------- Run | Scr Mat Min Mat Min Exi Min Mat Sto Rec Fac DSF Machines Accessed 27 | . 2 1 4 . 2 1 3 1 12 1 . Terminals 15 | . 2 1 3 . . 1 1 . 6 1 . Fabricators . | . . . . . . . . . . . . Repair Stations 1 | . . . . . . . . 1 . . . Recycling Units 6 | . . . . . . . . . 6 . . Scanalyzers 2 | . . . 1 . . . 1 . . . . Garrison Access 1 | . . . . . . . 1 . . . . Total Hacks 66 | . 6 3 11 . 2 1 13 2 26 2 . Successful 31 | . 3 1 3 . 2 . 9 . 12 1 . Failed 34 | . 3 2 8 . . 1 4 2 13 1 . Catastrophic 9 | . . 1 3 . . . 1 . 4 . . Database Lockouts 1 | . . . . . . . . . 1 . . Manual 41 | . 3 3 7 . 1 1 . 3 23 . . Terminals 46 | . 6 3 10 . . 1 4 . 20 2 . Fabricators . | . . . . . . . . . . . . Repair Stations 2 | . . . . . . . . 2 . . . Recycling Units 6 | . . . . . . . . . 6 . . Scanalyzers 9 | . . . 1 . . . 8 . . . . Garrison Access 1 | . . . . . . . 1 . . . . Terminal Hacks 15 | . 3 1 2 . 2 . . . 6 1 . Record 1 | . . . . . 1 . . . . . . Part Schematic 2 | . 2 . . . . . . . . . . Robot Schematic 1 | . . 1 . . . . . . . . . Prototype ID Bank 2 | . . . . . . . . . 2 . . Open DSF 1 | . . . . . . . . . . 1 . Alert Level 1 | . . . 1 . . . . . . . . Unreport Threat 4 | . . . 1 . . . . . 3 . . Dispatch Records 1 | . . . . . . . . . 1 . . Zone Layout 1 | . 1 . . . . . . . . . . EX-Prototype ID Bank 1 | . . . . . 1 . . . . . . Fabricator Hacks . | . . . . . . . . . . . . Repair Station Hacks . | . . . . . . . . . . . . Recycling Unit Hacks . | . . . . . . . . . . . . Scanalyzer 8 | . . . . . . . 8 . . . . Insert Component 4 | . . . . . . . 4 . . . . Analyze 4 | . . . . . . . 4 . . . . Garrison Access Hacks 1 | . . . . . . . 1 . . . . Seal Access 1 | . . . . . . . 1 . . . . Unauthorized Hacks 7 | . . . 1 . . . . . 6 . . Terminals . | . . . . . . . . . . . . Fabricators . | . . . . . . . . . . . . Repair Stations . | . . . . . . . . . . . . Recycling Units 6 | . . . . . . . . . 6 . . Tunnel 6 | . . . . . . . . . 6 . . Scanalyzers 1 | . . . 1 . . . . . . . . Extract 1 | . . . 1 . . . . . . . . Garrison Access . | . . . . . . . . . . . . Data Cores Recovered . | . . . . . . . . . . . . Used . | . . . . . . . . . . . . Hacking Detections 15 | . 2 1 3 . . 1 1 1 5 1 . Full Trace Events 10 | . . 1 3 . . . 1 . 5 . . Feedback Events . | . . . . . . . . . . . . Feedback Blocked . | . . . . . . . . . . . . Robot Schematics Acquired 1 | . . 1 . . . . . . . . . Robots Built . | . . . . . . . . . . . . Authchips . | . . . . . . . . . . . . Time . | . . . . . . . . . . . . Total Robot Build Rating . | . . . . . . . . . . . . Part Schematics Acquired 11 | . 2 . 5 . . . 4 . . . . Parts Built . | . . . . . . . . . . . . Authchips . | . . . . . . . . . . . . Time . | . . . . . . . . . . . . Total Part Build Rating . | . . . . . . . . . . . . Parts Repaired . | . . . . . . . . . . . . Time . | . . . . . . . . . . . . Parts Recycled . | . . . . . . . . . . . . Recycled Matter . | . . . . . . . . . . . . Retrieved Matter . | . . . . . . . . . . . . Retrieved Components . | . . . . . . . . . . . . Parts Scanalyzed 4 | . . . . . . . 4 . . . . Part Schematics Acquired 4 | . . . . . . . 4 . . . . Parts Damaged . | . . . . . . . . . . . . Bothacking | -11 -10 -10 -9 -9 -9 -8 -8 -8 -8 -6 -6 ------------ Run | Scr Mat Min Mat Min Exi Min Mat Sto Rec Fac DSF Used RIF Installer . | . . . . . . . . . . . . Robots Hacked . | . . . . . . . . . . . . Non-combat . | . . . . . . . . . . . . Combat . | . . . . . . . . . . . . Robot Hacks Applied . | . . . . . . . . . . . . Relay Couplers Released . | . . . . . . . . . . . . Fabnet Peak Effective % . | . . . . . . . . . . . . Robots Rewired . | . . . . . . . . . . . . Allies Hacked . | . . . . . . . . . . . . Hacks Repelled . | . . . . . . . . . . . . Allies | -11 -10 -10 -9 -9 -9 -8 -8 -8 -8 -6 -6 -------- Run | Scr Mat Min Mat Min Exi Min Mat Sto Rec Fac DSF Total Allies 3 | . . 3 . . . . . . . . . Largest Group 3 | . . 3 1 . . . . . . . . Highest-Rated Group 40 | . . 40 16 . . . . . . . . Highest-Rated Ally 16 | . . 16 16 . . . . . . . . Total Orders . | . . . . . . . . . . . . Ally Attacks 31 | . . 23 8 . . . . . . . . Total Damage 318 | . . 194 124 . . . . . . . . Kills 5 | . . 4 1 . . . . . . . . Allies Corrupted . | . . . . . . . . . . . . Allies Melted . | . . . . . . . . . . . . Intel | -11 -10 -10 -9 -9 -9 -8 -8 -8 -8 -6 -6 ------- Run | Scr Mat Min Mat Min Exi Min Mat Sto Rec Fac DSF Robot Analysis Total . | . . . . . . . . . . . . Derelict Logs Recovered 3 | . . 3 . . . . . . . . . Drone Launches . | . . . . . . . . . . . . Drone Recoveries . | . . . . . . . . . . . . Exploration | -11 -10 -10 -9 -9 -9 -8 -8 -8 -8 -6 -6 ------------- Run | Scr Mat Min Mat Min Exi Min Mat Sto Rec Fac DSF Turns Passed 7763 | 141 544 1212 1595 225 1774 645 1228 83 253 61 2 Spaces Moved 3656 | 60 241 698 630 107 594 153 376 152 502 140 3 Core 6 | 5 . . 1 . . . . . . . . Treads 2431 | 55 241 698 585 107 594 146 5 . . . . Legs 45 | . . . 44 . . . 1 . . . . Wheels 253 | . . . . . . 7 246 . . . . Hover . | . . . . . . . . . . . . Flight 921 | . . . . . . . 124 152 502 140 3 Fastest Speed 34 | 50 160 160 160 160 160 295 50 50 50 34 34 Average Speed 175 | 150 160 160 173 160 295 395 216 50 50 34 34 Slowest Speed 1590 | 160 160 160 600 160 400 400 1590 50 50 34 34 Overloaded Moves . | . . . . . . . . . . . . Propulsion Burnouts . | . . . . . . . . . . . . Robots Hopped 15 | . . . . . . . . 6 8 1 . Cave-ins Triggered . | . . . . . . . . . . . . Exploration Rate (%) 42 | 6 48 97 54 27 71 22 36 31 99 7 17 Regions Visited 11 Branch Regions 6 Pre-discovered Areas 8 | . . 1 . . 1 . . . 6 . . Known Exits Taken 1 | . . . . . . . . . . 1 . Unknown Exits Taken 10 | 1 1 1 1 1 1 1 1 1 1 . . Scrap Searched 2 | . . 2 . . . . . . . . . Spaces Dug 8 | . . . . . . . . . . 8 . Terrain Destroyed 34 | . . . 12 14 . . . . . 8 . Melee . | . . . . . . . . . . . . Projectile . | . . . . . . . . . . . . AOE 34 | . . . 12 14 . . . . . 8 . Terrain Rammed . | . . . . . . . . . . . . Walls Destroyed . | . . . . . . . . . . . . Machines Disabled . | . . . . . . . . . . . . Actions | -11 -10 -10 -9 -9 -9 -8 -8 -8 -8 -6 -6 --------- Run | Scr Mat Min Mat Min Exi Min Mat Sto Rec Fac DSF Total 4403 | 86 331 765 867 128 615 172 638 153 495 150 3 Wait 188 | . 26 28 16 . . 4 114 . . . . Move 3616 | 59 240 697 629 106 593 152 375 140 485 137 3 Hop 14 | . . . . . . . . 5 8 1 . Pick Up 84 | 7 6 3 19 2 18 2 19 3 1 4 . Fast Attach 41 | 7 3 1 16 . 1 2 10 1 . . . Attach 13 | . . . 4 . . . 5 . . 4 . Detach 5 | . 2 . . . . 1 2 . . . . Swap 29 | . 3 3 12 . . . 9 . . 2 . Drop 57 | . 5 4 30 2 3 . 8 3 1 1 . Fire 343 | 13 42 25 138 17 . 11 95 1 . 1 . Melee . | . . . . . . . . . . . . Ram 1 | . . . . . . . 1 . . . . Kick . | . . . . . . . . . . . . Crush 12 | . 4 4 3 1 . . . . . . . Escape Stasis . | . . . . . . . . . . . . Rewire . | . . . . . . . . . . . . Trap . | . . . . . . . . . . . . Miscellaneous . | . . . . . . . . . . . . Route ------- -11/Scrapyard -10/Materials (discovered 2 exits: *Mat / *Min) -10/Mines (discovered 2 exits: *Mat x2) -9/Materials (discovered 3 exits: *Mat / [*Min x2]) -9/Mines -9/Exiles (discovered 2 exits: *Min x2) -8/Mines -8/Materials -8/Storage -8/Recycling -6/Factory -6/DSF History --------- Turn | Location | Event 2 | -11/Scrapyard | Met Revision 17 7 | -11/Scrapyard | Discovered new exit (range 13) 142 | -11/Scrapyard | Entered Materials 313 | -10/Materials | Build established: Mutant 432 | -10/Materials | Discovered new exit (range 16) 569 | -10/Materials | Discovered new exit (range 7) 686 | -10/Materials | Entered Mines 739 | -10/Mines | Discovered new exit (range 6) 779 | -10/Mines | Discovered new exit (range 7) 797 | -10/Mines | Assisted by bots powering up and referring to "LRC-V3" 978 | -10/Mines | Learned Materials trap positions 980 | -10/Mines | Build established: Scavenger-Mutant 1090 | -10/Mines | Excavation squad dispatched 1090 | -10/Mines | A large section of the Mines collapsed 1343 | -10/Mines | Learned Materials interactive machine intel 1377 | -10/Mines | Build established: Mutant 1474 | -10/Mines | Learned location of Zion (-7) 1648 | -10/Mines | Joined a pair of Derelicts in attacking an 0b10 outpost 1898 | -10/Mines | Entered Materials 1898 | -9/Materials | Accompanied by 1 ally 1898 | -9/Materials | Evolved 2 slots: Propulsion x1, Utility x1 1899 | -9/Materials | Loaded intel: 12 trap records 1900 | -9/Materials | Loaded intel: 18 interactive machine locations 1959 | -9/Materials | Build established: Scavenger-Mutant 2410 | -9/Materials | Discovered new exit (range 10) 2476 | -9/Materials | Discovered new exit (range 11) 2858 | -9/Materials | Discovered new exit (range 10) 3085 | -9/Materials | Build established: Mutant 3399 | -9/Materials | Build established: Scavenger-Mutant 3493 | -9/Materials | Entered Mines 3494 | -9/Mines | Met a Derelict bent on vengeance 3710 | -9/Mines | Deemed a non-threat by the Exiles lab entrance 3711 | -9/Mines | Discovered new exit (range 5) 3718 | -9/Mines | Entered Exiles 3739 | -9/Exiles | Discovered new exit (range 17) 3762 | -9/Exiles | Met 8R-AWN 3784 | -9/Exiles | Met EX-HEX 3872 | -9/Exiles | Met EX-DEC 3933 | -9/Exiles | Met EX-BIN 3958 | -9/Exiles | Aligned with FarCom system 3960 | -9/Exiles | Given EX-Vault access code 3997 | -9/Exiles | Opened EX-Vault 4048 | -9/Exiles | Warned to stay clear of 0b10 Research branches 4440 | -9/Exiles | Build established: Hauler-Mutant 4561 | -9/Exiles | Found Flying Fortress v7 4983 | -9/Exiles | Discovered new exit (range 10) 5492 | -9/Exiles | Left Exiles lab with Flying Fortress v7 5492 | -9/Exiles | Entered Mines 6083 | -8/Mines | Discovered new exit (range 5) 6137 | -8/Mines | Entered Materials 6137 | -8/Materials | Evolved 2 slots: Propulsion x1, Utility x1 6215 | -8/Materials | Discovered new exit (range 11) 7024 | -8/Materials | Lost 3 parts (1n1u1w) 7298 | -8/Materials | Lost 9 parts (1p3n4u1w) 7365 | -8/Materials | Entered Storage 7446 | -8/Storage | Used back door to open Recycling access 7446 | -8/Storage | Discovered new exit (range 5) 7448 | -8/Storage | Entered Recycling 7484 | -8/Recycling | Spotter reported a threat 7487 | -8/Recycling | Spotter reported a threat 7492 | -8/Recycling | Spotter reported a threat 7508 | -8/Recycling | Spotter reported a threat 7511 | -8/Recycling | Spotter reported a threat 7537 | -8/Recycling | Spotter reported a threat 7538 | -8/Recycling | Spotter reported a threat 7544 | -8/Recycling | Spotter reported a threat 7561 | -8/Recycling | Spotter reported a threat 7563 | -8/Recycling | Spotter reported a threat 7585 | -8/Recycling | Spotter reported a threat 7589 | -8/Recycling | Build established: Mutant 7598 | -8/Recycling | Spotter reported a threat 7633 | -8/Recycling | Spotter reported a threat 7635 | -8/Recycling | Spotter reported a threat 7638 | -8/Recycling | Spotter reported a threat 7663 | -8/Recycling | Spotter reported a threat 7677 | -8/Recycling | Spotter reported a threat 7688 | -8/Recycling | Spotter reported a threat 7698 | -8/Recycling | Discovered new exit (range 7) 7701 | -8/Recycling | Entered Factory 7701 | -6/Factory | Evolved 4 slots: Propulsion x2, Utility x2 7747 | -6/Factory | Identified exit to DSF 7762 | -6/Factory | Entered DSF 7764 | -6/DSF | Self-destructed Last Messages --------------- 07701_ Receiving FarCom transmissions... 07726_ Acquired Recoil Stabilizer. 07727_ Acquired Lrn. Tractor Beam. 07729_ U-05 Engineer lays Concrete. 07730_ The unstable cave ceiling collapses. 07730_ Acquired Focal Shield. 07731_ U-05 Engineer lays Concrete. 07731_ Dropped Recoil Stabilizer. 07732_ U-05 Engineer builds a Wall. 07747_ Connecting with DSF Access... 07747_ Current location identified: Factory >>Open(DSF) DSF access unlocked. 07747_ EXIT=UNLOCKED: DSF 07751_ K-01 Serf cleans the Neutrino Reactor. 07757_ Acquired System Shield. LOCATION=DSF AMBIENT_HEAT=-10 GOAL=ESCAPE 07762_ Receiving FarCom transmissions... Map ----- +----------------------------------------------------+ | | | | | | | | | | | | | | | | | | | | | | | | | | | | | | | | | ????????????????????????????????????? | | ????????????????????????????????????? | | ????????#####???????????????????????? | | ????????#####???????????????????????? | | ????????#""##???????????????????????? | | ?????#####"###??????????????????????? | | ?????#####"###?###??????????????????? | | ?????##"""""######?## ????? ##??????? | | ?????##"""""##!!#!!!#==!!! ##??????? | | ??##"##"" @ ##??????? | | ??##""""" ##??????? | | ??#####"" x## # ### ####??????? | | ??####### ### # ? ### ? ##????????? | | ?????#### #######?## ??????????????? | | ??????##! ?####??????????????????? | | ??????##! #??????????????????????? | | ??????### ###??????????????????????? | | ??????## #??????????????????????? | | ??????## ????????????????????????? | | ??????## ???????????????????????? | | ??????### ##???????????????????????? | | ??????# ! ##???????????????????????? | | ????????! ##???????????????????????? | | ???????? ???????????????????????? | | ???????? ????????????H???????????? | | ??????? ???????????????????????? | | ???????? ##???????????????????????? | | ?????????? ##???????????????????????? | | ????????????????????????????????????? | | ????????????????????????????????????? | | ????????????????????????????????????? | | ????????????????????????????????????? | | ????????????????????????????????????? | | ????????????????????????????????????? | +----------------------------------------------------+ Best States ------------- Heat Dissipation 37 Energy Generation 14 Energy Capacity 280 Matter Stores 450 Matter Capacity 450 Sight Range 18 Terrain Scan Density 10 Armor Coverage 450 Resistance: TH 15 Propulsion Shielding 66 Evasion (%) 63 Recoil Reduction 3 Item Schematics ----------------- Huge Storage Unit | -10/Materials | Hacked Hcp. Storage Unit | -10/Materials | Hacked EMP Blaster | -9/Materials | Extracted Heat Sink | -9/Materials | Extracted Cooling System | -9/Materials | Extracted Med. Battery | -9/Materials | Extracted Utility Shielding | -9/Materials | Extracted Mni. Grenade Launcher | -8/Materials | Scanalyzed Hacking Suite | -8/Materials | Scanalyzed Humpback | -8/Materials | Scanalyzed Hrd. Light Armor Plating | -8/Materials | Scanalyzed Robot Schematics ------------------ O-16 Technician | -10/Mines | Hacked Fabricated ------------ Nothing Alien Tech Used ----------------- None Achievements -------------- None Challenges ------------ None Game ------ Seed FireAbsorptionProtection Manual? 0 Play Time 00:55:09 Cumulative 436.0 hours Start 2022.01.15 @ 19:05:57 End 2022.01.21 @ 08:22:02 Sessions 5 Manual Loads 0 Difficulty Rogue Special Mode None Game No. 420 Rogue 205 Adventurer 112 Explorer 103 Win Type - Total 29 Types 21/0/5/2/0/0/0/1/0 Lore% 85 Gallery% 89 Achievement% 80 Wizard Run 0 Options --------- ASCII 1 Keyboard 1 Movement Vi Keybinds 1 Fullscreen 2 Font 24/Smallcaps Map View 113x50 Tactical HUD 1 Map Filters NONE Filters NONE Steam X RUN: 09b6eb7b-03a5-45cb-b95c-04ce9fac64f8